{"text_format":"2","workbook":"xlsx","n_sheets":2,"sheets":["Analyse","Definitionen"],"not_rendered":{"charts":0,"images":0,"macros":0,"external_links":0,"defined_names":0,"comments":0,"pivot_tables":0},"unopened":[],"bounds":{"document_bytes":16777216,"sheet_cells":100000,"run_cost":"one","rows_first":2000,"rows_last":500,"rows_between":2000,"halvings":0,"cell_chars":16384,"cell_head_chars":4096},"cells_cut":0,"cells_raw":0,"read":"whole","date_system":"1900"}

{"sheet":"Analyse","index":0,"n_rows":22,"n_cols":31,"rows_kept":22,"cut":false,"hidden":false,"merged":[]}
["Video","FPS","Start","End","Reason for End","Distance","Speed","Hindlimb Drops"]
["Unit","1/s","Frame #","Frame #",null,"cm","cm/s","Frame #","L/R","Frame #","L/R","Frame #","L/R","Frame #","L/R","Frame #","L/R","Frame #","L/R","Frame #","L/R","Frame #","L/R","Frame #","L/R","Frame #","L/R","Frame #","L/R","Frame #","L/R"]
["PB_T3_3_1_P3_RotatingBeam_1",31,50,230,"End of beam",120,{"$f":"F3/((D3-C3)/B3)","v":20.6666666666667},99,"R"]
["PB_T3_3_2_P3_RotatingBeam_2",32,61,218,"End of beam",120,{"$f":"F4/((D4-C4)/B4)","v":24.4585987261147}]
["PB_T3_4_2_P3_RotatingBeam_4",32,75,280,"Stop",112,{"$f":"F5/((D5-C5)/B5)","v":17.4829268292683},187,"L",251,"R"]
["PB_T3_4_3_P3_RotatingBeam_2",31,48,233,"End of beam",120,{"$f":"F6/((D6-C6)/B6)","v":20.1081081081081},120,"L",177,"R"]
["PB_T3_4_4_P3_RotatingBeam_1",32,71,341,"End of beam",120,{"$f":"F7/((D7-C7)/B7)","v":14.2222222222222},81,"R",94,"R",117,"R",129,"R",154,"R",161,"L",209,"R"]
["PB_T3_4_5_P3_RotatingBeam_1",31,64,219,"End of beam",120,{"$f":"F8/((D8-C8)/B8)","v":24}]
["PB_T3_5_2_P3_RotatingBeam_1",32,60,254,"End of beam",120,{"$f":"F9/((D9-C9)/B9)","v":19.7938144329897},74,"L"]
["PB_T3_6_1_P3_RotatingBeam_1",43,80,407,"End of beam",120,{"$f":"F10/((D10-C10)/B10)","v":15.7798165137615},147,"R"]
["PB_T3_7_2_P3_RotatingBeam_4",46,99,708,"End of beam",120,{"$f":"F11/((D11-C11)/B11)","v":9.06403940886699},373,"R",402,"R",665,"R"]
["PB_T3_8_4_P3_RotatingBeam_4",45,96,396,"End of beam",120,{"$f":"F12/((D12-C12)/B12)","v":18},330,"R"]
["PB_T3_9_3_P3_RotatingBeam_3",32,61,573,"End of beam",120,{"$f":"F13/((D13-C13)/B13)","v":7.5},118,"R",156,"L",160,"R",195,"R",237,"R",264,"R",295,"R",337,"R",376,"R",441,"R",462,"R",486," R"]
["PB_T3_9_4_P3_RotatingBeam_2",31,59,538,"End of beam",120,{"$f":"F14/((D14-C14)/B14)","v":7.76617954070981},224,"L",436,"L"]
["PB_T3_10_2_P3_RotatingBeam_2",32,67,317,"End of beam",120,{"$f":"F15/((D15-C15)/B15)","v":15.36}]
["PB_T3_10_3_P3_RotatingBeam_3",32,57,248,"End of beam",120,{"$f":"F16/((D16-C16)/B16)","v":20.1047120418848},156,"R"]
["PB_T3_12_1_P3_RotatingBeam_2",30,40,380,"End of beam",120,{"$f":"F17/((D17-C17)/B17)","v":10.5882352941176},113,"R",230,"R"]
["PB_T3_13_4_P3_RotatingBeam_3",30,61,240,"End of beam",120,{"$f":"F18/((D18-C18)/B18)","v":20.1117318435754}]
["PB_T3_14_1_P3_RotatingBeam_1",30,70,320,"End of beam",120,{"$f":"F19/((D19-C19)/B19)","v":14.4},78,"R",123,"R",230,"R",244,"R"]
["PB_T3_14_3_P3_RotatingBeam_2",30,52,232,"End of beam",120,{"$f":"F20/((D20-C20)/B20)","v":20}]
["PB_T3_16_3_P3_RotatingBeam_2",30,61,343,"End of beam",120,{"$f":"F21/((D21-C21)/B21)","v":12.7659574468085},151,"R",201,"R"]
["PB_T3_17_1_P3_RotatingBeam_4",30,71,243,"End of beam",120,{"$f":"F22/((D22-C22)/B22)","v":20.9302325581395},120,"L"]

{"sheet":"Definitionen","index":1,"n_rows":15,"n_cols":4,"rows_kept":15,"cut":false,"hidden":false,"merged":[]}
[]
[]
[null,null,"Einheit","Definition"]
[null,"Start","Frame Nummer","Der Startpunkt wird gesetzt, wenn sowohl rechte Vorder- als auch Hinterpfote sichtbar sind und kurz davor (~ 10 Pixel) sind die Stange zu berühren."]
[null,"Ende","Frame Nummer","Der Endpunkt wird gesetzt, wenn eins der folgenden Ereignisse eintritt:"]
[null,null,null,"- drop, Schnauzenspitze und Schwanzansatz befinden sich sichtbar unter der Stange"]
[null,null,null,"- turn, Schnauzenspitze befindet sich sichtbar links, Schwanzansatz sichtbar rechts und die Maus bewegt sich nach links"]
[null,null,null,"- end of beam, die Maus hat die letzten 5 cm der Stange mit ihren Vorderpfoten erreicht. "]
[null,null,null,"- stop, die Maus bewegt sich für 1 Sekunde nicht. Weder Hinter- noch Vorderpfoten haben sich bewegt"]
[null,null,null,"- time over, 60 Sekunden sind verstrichen"]
[null,"Grund für Ende","Character ","Begründung für das Ende der Analyse (drop, turn, end of beam, stop oder time over)"]
[null,"Distance","cm","Die gelaufene Distanz zwischen Start- und Endzeitpunkt der Analyse in Zentimeter"]
[null,"Speed","cm/s","Geschwindigkeit zwischen Start- und Endzeitpunkt der Analyse in Zentimeter pro Sekunde"]
[null,"Hindlimb Drops","Frame Nummer + L/R","Ein Hindlimb Drop findet statt, wenn sich die linke oder rechte Hinterpfote sichtbar unter der Stange befindet. Mit Angabe auf welcher Seite der Drop stattgefunden hat (L/R)."]
[null,null,null,"Ein weiterer Hindlimb Drop wird erst dann gezählt, wenn sich die Hinterpfote zwischenzeitlich wieder über/auf der Stange befunden hat."]